Cogmind - Beta 15 @@@ ROGUE MODE // 2025.05.13 @ 14:47:44 Player: Lillith Result: Destroyed by Y-45 Defender with Heavy Assault Rifle Performance ------------- Evolutions (0) 0 Regions Visited (2) 400 Robots Destroyed (25) 125 Value Destroyed (388) 388 Prototype IDs (0) 0 Alien Tech Used (0) 0 Bonus (0) 0 TOTAL SCORE: 913 Bonus ------- None Cogmind --------- Core Integrity 0/250 Matter 223/300 Energy 31/125 System Corruption 0% Temperature Danger (457) Movement Core (550) Ox10 Location -10/Mines Parts ------- > --- POWER (1) -------- Light Ion Engine > --- PROPULSION (2) --- (None) > --- UTILITY (2) ------ Large Storage Unit Hardened Light Armor Plating > --- WEAPON (2) ------- Beam Cannon Assault Rifle > --- INVENTORY (15) --- Large Matter Pod (102) Structural Scanner Seismic Detector Hardened Light Armor Plating Hardened Light Armor Plating Beam Cannon Beam Cannon Beam Cannon Light Assault Rifle Light Assault Rifle Mining Claw Peak State ------------ > --- POWER ------------ Ion Engine > --- PROPULSION ------- Light Treads Light Treads > --- UTILITY ---------- Large Storage Unit Hardened Light Armor Plating > --- WEAPON ----------- Beam Cannon Beam Cannon > --- INVENTORY -------- Light Ion Engine Hover Unit Hover Unit Small Storage Unit Large Matter Pod Seismic Detector Beam Cannon Assault Rifle Light Assault Rifle Mining Claw [Rating: 9] Favorites ----------- Power Ion Engine Engine Ion Engine Propulsion Light Treads Treads Light Treads Hover Unit Hover Unit Utility Large Storage Unit Device Seismic Detector Storage Large Storage Unit Protection Hardened Light Armor Plating Weapon Beam Cannon Energy Gun Small Laser Energy Cannon Beam Cannon Ballistic Gun Light Assault Rifle Build | -11 -10 -10 ------- Run | Yrd Mat Min Slots Evolved . | . . . Power . | . . . Propulsion . | . . . Utility . | . . . Weapon . | . . . Parts Attached 22 | 7 8 7 Power 3 | 1 . 2 Engine 3 | 1 . 2 Core . | . . . Reactor . | . . . Propulsion 4 | 2 2 . Treads 2 | 2 . . Leg . | . . . Wheel . | . . . Hover 2 | . 2 . Flight . | . . . Utility 6 | 2 2 2 Device 2 | 1 . 1 Storage 2 | 1 1 . Processor . | . . . Hackware . | . . . Protection 2 | . 1 1 Artifact . | . . . Weapon 9 | 2 4 3 Energy Gun 2 | 1 1 . Energy Cannon 4 | . 2 2 Ballistic Gun 3 | 1 1 1 Ballistic Cannon . | . . . Launcher . | . . . Special Weapon . | . . . Impact Weapon . | . . . Slashing Weapon . | . . . Piercing Weapon . | . . . Special Melee Weapon . | . . . Unidentified Prototypes . | . . . Parts Lost 7 | . . 7 Power 2 | . . 2 Propulsion 4 | . . 4 Utility 1 | . . 1 Weapon . | . . . Highest Loss Streak 4 | . . 4 To Critical Strikes 1 | . . 1 Average Backups 12 | 3 12 13 Power . | . 1 . Propulsion 2 | 2 3 . Utility 3 | . 3 5 Weapon 4 | . 4 6 Tool/Special . | . . . Unused Backups 15 | . 11 4 Power . | . . . Propulsion 9 | . 9 . Utility 4 | . 1 3 Weapon 1 | . . 1 Tool/Special 1 | . 1 . Average Slot Usage (%) 98 | . 98 99 Engine 13 | . 14 13 Treads 21 | . 26 7 Hover 6 | . . 19 Device 8 | . 8 7 Storage 14 | . 14 14 Protection 5 | . 5 6 Energy Gun 7 | . 9 . Energy Cannon 10 | . 10 9 Ballistic Gun 9 | . 6 18 Peak Build Rating 9 | 7 9 9 Average Rating 8 | 4 8 8 On Entrance 5 | . 7 9 Naked Turns . | . . . Heaviest Build 36 | 13 36 36 Greatest Support 40 | 40 40 40 Greatest Overweight (x) 2 | . 2 2 Average Overweight (x) . | . . 1 Largest Inventory Capacity 15 | 8 15 15 Average Capacity 14 | 6 14 15 Most Carried 15 | 5 15 15 Average Carried 12 | 3 13 13 Final Capacity 15 | 8 15 15 Final Carried 15 | 5 15 11 Class Distribution -------------------- 100% | Mutant Dominant Class ---------------- Mutant | -10/Materials Mutant | -10/Mines Resources | -11 -10 -10 ----------- Run | Yrd Mat Min Matter Collected 751 | 152 453 146 Remotely . | . . . Salvage Created 527 | 24 350 153 Parts 47 | 4 28 15 Haulers Intercepted . | . . . Recyclers Shooed . | . . . Parts Field Recycled . | . . . Retrieved Matter . | . . . Parts Self-Destructed . | . . . Prevented . | . . . Kills | -11 -10 -10 ------- Run | Yrd Mat Min Combat Hostiles Destroyed 20 | . 13 7 Guns 11 | . 5 6 Cannons 9 | . 8 1 Classes Destroyed 6 | 1 4 1 Worker 1 | . 1 . Tunneler 2 | 1 1 . Watcher 2 | . 2 . Swarmer 15 | . 9 6 Grunt 4 | . 4 . Sentry 1 | . . 1 Best Kill Streak 3 | 1 3 3 Combat Bots Only 3 | . 3 3 Max Kills in Single Turn 1 | 1 1 1 Gunslinging . | . . . Exploded . | . . . Melee . | . . . Uniques/NPCs Destroyed . | . . . Combat | -11 -10 -10 -------- Run | Yrd Mat Min Hostile Shots Fired 172 | . 74 98 Missed 45 | . 25 20 Hits 127 | . 49 78 Projectile 127 | . 49 78 Critical Strikes 6 | . . 6 Damage Taken 1176 | . 425 751 Core 253 | . 86 167 Absorbed by Shields . | . . . Core Remaining (%) 100 | 100 . . Volleys Fired 78 | 2 46 30 Largest 2 | 2 2 2 Hottest 120 | 60 120 120 Shots Fired 142 | 4 79 59 Gun 96 | 4 43 49 Cannon 46 | . 36 10 Launcher . | . . . Special . | . . . Kinetic 73 | 2 22 49 Thermal 69 | 2 57 10 Explosive . | . . . Electromagnetic . | . . . Robot Hit Streak 7 | 2 7 7 Robot Miss Streak 5 | 1 3 5 Penetration Max . | . . . Secondary Targets 2 | . . 2 Max Gunslinging Chain 1 | . . 1 Shots Hit Robots 72 | 2 40 30 Core Hits 31 | 2 18 11 Critical Kills 1 | . 1 . Critical Parts Destroyed 1 | . . 1 Critical Strikes 2 | . 1 1 Meltdown 1 | . 1 . Destroy 1 | . . 1 Melee Attacks . | . . . Impact . | . . . Slashing . | . . . Piercing . | . . . Sneak Attacks . | . . . Combat Hostiles . | . . . Follow-up Attacks . | . . . Damage Inflicted 958 | 25 579 354 Guns 522 | 25 316 181 Cannons 436 | . 263 173 Explosions . | . . . Melee . | . . . Ramming . | . . . Kinetic 366 | 13 172 181 Thermal 592 | 12 407 173 Explosive . | . . . Electromagnetic . | . . . Impact . | . . . Slashing . | . . . Piercing . | . . . Highest Corruption . | . . . Average Corruption . | . . . Corruption Purged . | . . . Corruption Blocked . | . . . Overload Shots . | . . . Overflow Damage . | . . . Projectiles . | . . . Explosions . | . . . Melee . | . . . Knockbacks . | . . . Impact . | . . . Kinetic . | . . . Secondary . | . . . Self-Inflicted Damage . | . . . Shots . | . . . Rammed . | . . . Targets Rammed . | . . . Kicked . | . . . Crushed . | . . . Highest Temperature 492 | 20 492 475 Average Temperature 144 | 15 160 105 Received Heat Transfer 219 | . 57 162 Effects 12 | . 8 4 Shutdowns 3 | . 2 1 Energy Bleed 3 | . 2 1 Interference 3 | . 2 1 Matter Decay 2 | . 2 . Short Circuit 1 | . . 1 Siege Activations . | . . . Martial Activations . | . . . Shielding Activations . | . . . Robots Disrupted . | . . . Combat Hostiles . | . . . Robots Corrupted . | . . . Combat Hostiles . | . . . Parts Fried . | . . . Impact Corruptions . | . . . Robots Melted 1 | . 1 . Combat Hostiles . | . . . Parts Melted 9 | . 4 5 Heat Transferred 1275 | 25 880 370 Parts Sabotaged . | . . . Parts Stolen . | . . . Parts Stripped . | . . . Power Chain Reactions . | . . . Alert | -11 -10 -10 ------- Run | Yrd Mat Min Maximum Alert Level . | . . . Low Security (%) 100 | 100 100 100 Level 1 . | . . . Level 2 . | . . . Level 3 . | . . . Level 4 . | . . . Level 5 . | . . . High Security . | . . . Max Security . | . . . Peak Influence 132 | 5 132 73 Initial 33 | . . 33 Average 35 | . 43 20 Influence Increases 534 | 5 369 160 Destroy 0b10 Robot/C 400 | . 260 140 Destroy 0b10 Robot/NC 25 | 5 20 . Destroy Leader 74 | . 54 20 Successful Hack 18 | . 18 . Disable Machine 15 | . 15 . Destroy Structure 2 | . 2 . Influence Decreases 524 | 5 283 236 Entered New Map 53 | . . 53 Time Decay 431 | 5 283 143 Lost Part 40 | . . 40 Squads Dispatched 2 | . 2 . Investigation 2 | . 2 . Extermination . | . . . Reinforcement . | . . . Assault . | . . . Garrison . | . . . Intercept . | . . . Searches Triggered . | . . . Construction Impeded . | . . . Haulers Reinforced . | . . . Active Scanning Responses . | . . . Cargo Convoy Interrupts . | . . . Stealth | -11 -10 -10 --------- Run | Yrd Mat Min Distress Signals 2 | . 2 . Communications Jammed . | . . . Distress Signals . | . . . Times Spotted 31 | . 23 8 Peak Tracking Total 4 | . 4 3 Tactical Retreats . | . . . Traps | -11 -10 -10 ------- Run | Yrd Mat Min Traps Triggered 1 | . 1 . Indirectly . | . . . Trap Hack Attempts . | . . . Triggered . | . . . Disarmed . | . . . Reprogrammed . | . . . Reused . | . . . Traps Extracted . | . . . Installed . | . . . Triggered . | . . . Machines | -11 -10 -10 ---------- Run | Yrd Mat Min Machines Disabled 1 | . 1 . Max in Single Turn 1 | . 1 . Machines Repaired . | . . . Machines Dismantled . | . . . Machines Sabotaged . | . . . Overloaded Fab Kills . | . . . Hacking | -11 -10 -10 --------- Run | Yrd Mat Min Machines Accessed 8 | . 8 . Terminals 8 | . 8 . Fabricators . | . . . Repair Stations . | . . . Recycling Units . | . . . Scanalyzers . | . . . Garrison Access . | . . . Total Hacks 23 | . 23 . Successful 9 | . 9 . Failed 14 | . 14 . Catastrophic 1 | . 1 . Database Lockouts . | . . . Manual 21 | . 21 . Terminals 23 | . 23 . Fabricators . | . . . Repair Stations . | . . . Recycling Units . | . . . Scanalyzers . | . . . Garrison Access . | . . . Terminal Hacks 4 | . 4 . Robot Schematic 3 | . 3 . Hauler Manifests 1 | . 1 . Fabricator Hacks . | . . . Repair Station Hacks . | . . . Recycling Unit Hacks . | . . . Scanalyzer . | . . . Garrison Access Hacks . | . . . Unauthorized Hacks 5 | . 5 . Terminals 5 | . 5 . Skim 5 | . 5 . Fabricators . | . . . Repair Stations . | . . . Recycling Units . | . . . Scanalyzers . | . . . Garrison Access . | . . . Data Cores Recovered . | . . . Used . | . . . Hacking Detections 8 | . 8 . Full Trace Events 1 | . 1 . Feedback Events . | . . . Feedback Blocked . | . . . Robot Schematics Acquired 3 | . 3 . Robots Built . | . . . Authchips . | . . . Time . | . . . Total Robot Build Rating . | . . . Part Schematics Acquired . | . . . Parts Built . | . . . Authchips . | . . . Time . | . . . Total Part Build Rating . | . . . Parts Repaired . | . . . Time . | . . . Parts Recycled . | . . . Recycled Matter . | . . . Retrieved Matter . | . . . Retrieved Components . | . . . Parts Scanalyzed . | . . . Part Schematics Acquired . | . . . Parts Damaged . | . . . Bothacking | -11 -10 -10 ------------ Run | Yrd Mat Min Used RIF Installer . | . . . Robots Hacked . | . . . Non-combat . | . . . Combat . | . . . Robot Hacks Applied . | . . . Relay Couplers Released . | . . . Fabnet Peak Effective % . | . . . Robots Rewired . | . . . Allies Hacked . | . . . Hacks Repelled . | . . . Allies | -11 -10 -10 -------- Run | Yrd Mat Min Total Allies . | . . . Largest Group . | . . . Highest-Rated Group . | . . . Highest-Rated Ally . | . . . Total Orders . | . . . Ally Attacks . | . . . Total Damage . | . . . Kills . | . . . Allies Corrupted . | . . . Allies Melted . | . . . Intel | -11 -10 -10 ------- Run | Yrd Mat Min Active Infowar (turns) 1140 | 36 819 285 Structural 196 | . . 196 Seismic 944 | 36 819 89 Robot Analysis Total . | . . . Derelict Logs Recovered 2 | . . 2 Drone Launches . | . . . Drone Recoveries . | . . . Exploration | -11 -10 -10 ------------- Run | Yrd Mat Min Turns Passed 1997 | 95 1374 528 Spaces Moved 1041 | 51 742 248 Core 6 | 6 . . Treads 831 | 45 732 54 Legs . | . . . Wheels . | . . . Hover 204 | . 10 194 Flight . | . . . Fastest Speed 50 | 50 116 160 Average Speed 162 | 147 159 172 Slowest Speed 240 | 160 240 176 Overloaded Moves . | . . . Propulsion Burnouts . | . . . Robots Hopped . | . . . Potential Cave-ins . | . . . Cave-ins Triggered . | . . . Exploration Rate (%) 51 | 6 95 53 Regions Visited 2 Branch Regions 1 Pre-discovered Areas 2 | . 1 1 Known Exits Taken 1 | . 1 . Unknown Exits Taken 1 | 1 . . Scrap Searched 1 | . . 1 Spaces Dug . | . . . Terrain Destroyed . | . . . Melee . | . . . Projectile . | . . . AOE . | . . . Terrain Rammed . | . . . Walls Destroyed . | . . . Machines Disabled . | . . . Actions | -11 -10 -10 --------- Run | Yrd Mat Min Total 1219 | 65 860 294 Wait 5 | . 4 1 Move 1039 | 50 741 248 Hop . | . . . Pick Up 36 | 6 29 1 Fast Attach 10 | 6 4 . Attach 13 | 1 7 5 Detach 5 | . 5 . Swap 14 | . 5 9 Drop 19 | . 19 . Fire 78 | 2 46 30 Melee . | . . . Ram . | . . . Kick . | . . . Crush . | . . . Escape Stasis . | . . . Rewire . | . . . Trap . | . . . Miscellaneous . | . . . Route ------- -11/Scrapyard -10/Materials (discovered 6 exits: *Mat x3 / *Min x2 / Sub) -10/Mines (discovered 1 exit: *Mat) History --------- Turn | Location | Event 13 | -11/Scrapyard | Discovered new exit (range 16) 96 | -11/Scrapyard | Entered Materials 225 | -10/Materials | Discovered new exit (range 7) 295 | -10/Materials | Discovered new exit (range 3) 316 | -10/Materials | Build established: Mutant 522 | -10/Materials | Discovered new exit (range 5) 856 | -10/Materials | Discovered new exit (range 16) 1198 | -10/Materials | Identified exit to Subcaves 1198 | -10/Materials | Identified exit to Materials 1253 | -10/Materials | Learned 4 Subcaves zone layouts 1300 | -10/Materials | Learned location of 2 exits from Materials 1339 | -10/Materials | Learned location of Recycling (-9) 1382 | -10/Materials | Identified exit to Mines 1406 | -10/Materials | Learned location of 1 exit from Storage 1442 | -10/Materials | Learned 4 Subcaves zone layouts 1470 | -10/Materials | Entered Mines 1558 | -10/Mines | Core integrity fell below 50% 1638 | -10/Mines | Learned Materials terminal intel 1656 | -10/Mines | Lost 3 parts (1p2n) 1657 | -10/Mines | Discovered exit to Materials (range 10) 1885 | -10/Mines | Learned location of Zion (-6) 1982 | -10/Mines | Core integrity fell below 20% 1998 | -10/Mines | Destroyed by Y-45 Defender with Heavy Assault Rifle Last Messages --------------- 01984_ Hover Unit destroyed. 01984_ Critical hit (Burn: +37). 01987_ Lgt. Ion Engine destroyed. 01989_ Critical hit (Burn: +37). 01991_ Heat Sink melted. 01991_ Beam Rifle melted. 01991_ Heat Sink melted. 01991_ Imp. Ion Engine melted. 01991_ Lgt. Treads melted. 01991_ Y-45 Defender destroyed. 01992_ K-01 Serf collects debris. 01992_ Hover Unit destroyed. 01994_ Overheating: Energy bleed (-6). 01996_ Beam Cannon broken. 01996_ Overheating: Short circuit. 01996_ K-01 Serf collects debris. 01997_ Power failure, Lgt. Ion Engine shutdown. 01998_ Overheating: System interference. 01998_ Assault Rifle temporarily disabled. 01998_ Critical hit (Burn: +37). Map ----- +----------------------------------------------------+ | ?????????????????????????????????????????????????? | | ?????????????????????????????????????????????????? | | ?????????????????????????????????????????????????? | | ?????????????????????????????????????????????????? | | ?????????????????????????????????????????????????? | | ?????????????????????????????????????????????????? | | ?????????????????????????????????????????????????? | | ?????????????????????????????????????????????????? | | ????????????????????# ?????????????????????? | | ????????????????????## ???????????????????? | | ????????????????????## ?????????????????? | | ????????????????????## #????????????????? | | ????????????????????# ##### ????????????? | | ?????????????????????? ##### ????????????? | | ?????????????????????# ## ???????????? | | ????????????????????### ???????????? | | ??????????????????##### ##???????????? | | ??????????????######## ###???????????? | | ?????????????####### ###????????????? | | ?????????????###!|## ###????????????? | | ?????????????##"[| # ####???????????? | | ?????????????## =%Y t ###???????????? | | ?????????????## !%[ ##???????????? | | ?????????????##"?? #= ##???????????? | | ??????????????????## ##???????????? | | ??????????????????### @ ## ###???????????? | | ??#####???????????#### k ####?####???????????? | | ?########??????????#### ###?????????????????? | | ?### ####??######??#### ###??????????????????? | | ?## ###########??### #####??????????????????? | | ?## ##### ####??## ####???????#######?????? | | ?### ### ###??## ##????????#############? | | ??### ###### ##???????#### #######? | | ???### ###### ##??????#### ##? | | ???### ## ##?????#### ## ##? | | ????### #### ###### ##????#### ### ### | | ????########### ######rk###???### < #### ### | | ?????########### ###### ####??## ##### ### | | ?????????????### ##### ###??## #### ### | | ??????????????## ###?## #### ## | | ??????????????### ####### ###### ## | | ??????????????#### ###### ###### ## | | ???????????????#### ### ##### | | ????????????????##### #### ### | | ????????????????##### ## | | ???????????????### ### ? | | ??????????????### ##### #### ##? | | ??????????????## ####### #### ### | | ??????????????## ###?### #### ### | | ?????????????### ##???## %#### #?# | +----------------------------------------------------+ Best States ------------- Heat Dissipation 25 Energy Generation 10 Energy Capacity 250 Matter Stores 300 Matter Capacity 300 Sight Range 16 Terrain Scan Density 10 Armor Coverage 150 Evasion (%) 40 Recoil Reduction 2 Item Schematics ----------------- None Robot Schematics ------------------ G-34 Mercenary | -10/Materials | Hacked S-10 Pest | -10/Materials | Hacked W-16 Scout | -10/Materials | Hacked Fabricated ------------ Nothing Repaired ---------- Nothing Alien Tech Used ----------------- None Achievements -------------- None Challenges ------------ None Game ------ Seed TimingTechSystem Manual? 0 Play Time 00:18:19 Cumulative 45.2 hours Start 2025.05.13 @ 14:32:02 End 2025.05.13 @ 14:47:44 Sessions 1 Manual Loads 0 Difficulty Rogue Special Mode None Game No. 77 Rogue 77 Adventurer 0 Explorer 0 Win Type - Total 0 Types 0/0/0/0/0/0/0/0/0/0 Lore% 40 Gallery% 30 Achievement% 29 Wizard Run 0 Options --------- Layout 2 ASCII 0 Keyboard 1 Movement Arrows Keybinds 0 Fullscreen 2 Font 32/SmallcapsGlow Map View 50x44 Zoom Use 0% Tactical HUD 1 Map Filters NONE Filters NONE Steam 1 RUN: ec4b6be6-ed5a-4c44-b517-33ef5f7791a2